bitfinex/quotes_SOLUSD_20241102
["timestamp","ask_amount","ask_price","bid_price","bid_amount"]
[1730540400830,5.989,166.97,166.93,11.08268318]
[1730540405258,5.989,166.97,166.94,11.08268318]
[1730540406950,5.989,166.97,166.96,11.08268318]
[1730540407262,5.989,166.97,166.95,11.08268318]
[1730540408253,5.9883,166.99,166.95,11.08268318]
[1730540411750,5.9883,166.99,166.96,11.08268318]
[1730540412061,5.9883,166.99,166.95,11.08268318]
[1730540412637,5.9883,166.99,166.93,5.9904]
[1730540412638,5.9883,166.99,166.96,11.08268318]
[1730540420450,5.9883,166.99,166.97,11.08268318]
[1730540421058,5.9876,167.01,166.98,11.08268318]
[1730540422056,11.08268318,167.03,167.0,11.08268318]
[1730540422057,5.9869,167.03,167.0,11.08268318]
[1730540422264,81.08268318,167.01,166.95,11.08268318]
[1730540422582,11.08268318,167.0,166.95,11.08268318]
[1730540422874,11.08268318,167.0,166.92,20.968]
[1730540423566,5.9883,166.99,166.92,20.968]
[1730540423773,5.9883,166.99,166.94,11.08268318]
[1730540424358,5.9883,166.99,166.95,11.08268318]
[1730540425675,75.9883,166.99,166.95,11.08268318]
[1730540427597,5.9883,166.99,166.96,11.08268318]
[1730540428660,81.08268318,167.01,166.95,11.08268318]
[1730540428859,5.988,167.0,166.95,11.08268318]
[1730540431877,5.988,167.0,166.96,11.08268318]
[1730540433277,17.07068318,167.0,166.95,11.08268318]
[1730540436462,17.07068318,167.0,166.95,17.07238318]
[1730540437500,5.988,167.0,166.96,11.08268318]
[1730540439586,5.9876,167.01,166.96,11.08268318]
[1730540440080,5.9876,167.01,166.96,17.07208318]
[1730540440287,75.9876,167.01,166.96,11.08268318]
[1730540440993,11.08268318,167.0,166.95,17.07238318]
[1730540441163,87.07028318,167.01,166.95,17.07238318]
[1730540447386,17.07028318,167.01,166.95,17.07238318]
[1730540447794,17.07028318,167.01,166.96,11.08268318]
[1730540448488,5.9876,167.01,166.96,11.08268318]
[1730540448681,5.9876,167.01,166.97,11.08268318]
[1730540448869,75.987,167.03,166.99,11.08268318]
[1730540450185,5.987,167.03,166.99,11.08268318]
[1730540451094,5.9865,167.04,166.99,11.08268318]
[1730540451677,5.9865,167.04,166.99,17.07098318]
[1730540451880,5.9865,167.04,167.0,11.08268318]
[1730540452188,21.3744,167.05,167.01,11.08268318]
[1730540452778,5.9859,167.06,167.01,11.08268318]
[1730540452980,5.9859,167.06,167.02,11.08268318]
[1730540453399,17.06778318,167.08,167.03,11.08268318]
[1730540454595,11.08268318,167.08,167.03,17.06938318]
[1730540454889,92.1642,167.09,167.05,11.08268318]
[1730540455306,0.6510882,167.1,167.06,11.08268318]
[1730540455595,76.6356882,167.1,167.06,11.08268318]
[1730540456393,6.6356882,167.1,167.07,11.08268318]
[1730540456703,0.6510882,167.1,167.07,11.08268318]
[1730540456872,0.6510882,167.1,167.08,11.08268318]
[1730540457200,0.6510882,167.1,167.09,11.08268318]
[1730540457884,0.6510882,167.1,167.08,11.08268318]
[1730540459198,0.6510882,167.1,167.06,11.08268318]
[1730540459383,6.6357882,167.1,167.06,11.08268318]
[1730540460792,0.6510882,167.1,167.08,11.08268318]
[1730540460996,0.6510882,167.1,167.09,11.08268318]
[1730540461195,0.6510882,167.1,167.08,11.08268318]
[1730540462303,0.6510882,167.1,167.09,11.08268318]
[1730540463584,0.6510882,167.1,167.08,11.08268318]
[1730540466101,0.6510882,167.1,167.08,10.08268318]
[1730540466296,0.6510882,167.1,167.07,11.08268318]
[1730540466500,0.6510882,167.1,167.06,11.08268318]
[1730540466501,5.9847,167.09,167.06,11.08268318]
[1730540467615,6.6354882,167.1,167.07,11.08268318]
[1730540468292,6.6354882,167.1,167.08,11.08268318]
[1730540472199,6.6354882,167.1,167.07,11.08268318]
[1730540474193,6.6354882,167.1,167.06,11.08268318]
[1730540474398,17.71817138,167.1,167.05,26.04818318]
[1730540475508,6.6354882,167.1,167.05,26.04818318]
[1730540478613,76.6354882,167.1,167.05,11.08268318]
[1730540479610,76.6354882,167.1,167.06,11.08268318]
[1730540480017,6.6354882,167.1,167.07,11.08268318]
[1730540480314,6.6354882,167.1,167.08,11.08268318]
[1730540482506,6.6354882,167.1,167.05,5.9861]
[1730540482507,6.6354882,167.1,167.07,11.08268318]
[1730540483012,6.6354882,167.1,167.05,5.9861]
[1730540483216,6.6354882,167.1,167.08,11.08268318]
[1730540483593,0.6510882,167.1,167.09,11.08268318]
[1730540493914,0.6510882,167.1,167.08,11.08268318]
[1730540494112,6.6355882,167.1,167.07,11.08268318]
[1730540495331,6.6355882,167.1,167.08,11.08268318]
[1730540496122,0.6510882,167.1,167.08,11.08268318]
[1730540496313,0.6510882,167.1,167.09,11.08268318]
[1730540505115,0.6510882,167.1,167.09,17.06738318]
[1730540505510,0.6510882,167.1,167.09,11.08268318]
[1730540512809,0.6510882,167.1,167.09,17.06738318]
[1730540528237,0.6510882,167.1,167.08,11.08268318]
[1730540529325,0.6510882,167.1,167.08,17.06778318]
[1730540532839,0.6510882,167.1,167.09,11.08268318]
[1730540535033,6.6354882,167.1,167.07,26.04578318]
[1730540535647,6.6354882,167.1,167.07,14.9631]
[1730540535852,0.6510882,167.1,167.07,26.04578318]
[1730540536245,0.6510882,167.1,167.08,11.08268318]
[1730540539651,0.6510882,167.1,167.07,26.04578318]
[1730540544931,6.6355882,167.1,167.06,11.08268318]
[1730540551134,11.08268318,167.09,167.05,6.23589914]
[1730540551340,26.74208318,167.08,167.04,32.03548318]
[1730540551542,15.6594,167.08,167.04,38.26186741]
[1730540553142,15.6594,167.08,167.05,11.08268318]
[1730540553460,17.71827138,167.1,167.05,11.08268318]
[1730540553634,6.6355882,167.1,167.06,11.08268318]
[1730540561361,6.6355882,167.1,167.06,17.06848318]
[1730540561751,17.71827138,167.1,167.06,5.9858]
[1730540563167,17.71827138,167.1,167.05,17.06878318]
[1730540563354,6.6355882,167.1,167.05,17.06878318]
[1730540563663,6.6355882,167.1,167.06,11.08268318]
[1730540572368,6.6355882,167.1,167.06,17.06838318]
[1730540572757,6.6355882,167.1,167.07,11.08268318]
[1730540574485,6.6355882,167.1,167.06,5.9857]
[1730540574486,6.6355882,167.1,167.06,11.08268318]
[1730540576275,6.6355882,167.1,167.06,17.06838318]
[1730540589488,6.6355882,167.1,167.06,11.08268318]
[1730540589687,17.71827138,167.1,167.05,11.08268318]
[1730540594089,17.71827138,167.1,167.04,38.28283203]
[1730540596177,17.71827138,167.1,167.05,11.08268318]
[1730540605276,6.6355882,167.1,167.05,11.08268318]
[1730540605973,6.6355882,167.1,167.06,11.08268318]
[1730540620606,6.6355882,167.1,167.04,27.20014885]
[1730540620607,0.6510882,167.1,167.08,11.08268318]
[1730540620810,0.6510882,167.1,167.09,11.08268318]
[1730540622102,0.6510882,167.1,167.08,11.08268318]
[1730540626105,0.6510882,167.1,167.09,11.08268318]
[1730540629308,0.6510882,167.1,167.08,11.08268318]
[1730540629487,6.6354882,167.1,167.06,11.08268318]
[1730540630106,0.6510882,167.1,167.06,11.08268318]
[1730540631215,0.6510882,167.1,167.06,17.06848318]
[1730540637805,0.6510882,167.1,167.06,11.08268318]
[1730540638004,17.71847138,167.1,167.05,32.03418318]
[1730540638510,17.71847138,167.1,167.05,26.04818318]
[1730540639089,6.6357882,167.1,167.06,11.08268318]
[1730540640912,6.6357882,167.1,167.07,11.08268318]
[1730540644715,6.6357882,167.1,167.06,11.08268318]
[1730540644919,6.6357882,167.1,167.05,32.03418318]
[1730540648816,17.71847138,167.1,167.05,32.03418318]
[1730540656708,11.08268318,167.09,167.05,20.9515]
[1730540661027,17.71847138,167.1,167.05,32.03418318]
[1730540665135,6.6357882,167.1,167.06,11.08268318]
[1730540666239,6.6357882,167.1,167.05,26.04818318]
[1730540679252,6.6357882,167.1,167.05,14.9655]
[1730540686149,6.6357882,167.1,167.05,26.04818318]
[1730540698541,6.6357882,167.1,167.05,14.9655]
[1730540702751,6.6357882,167.1,167.05,20.9517]
[1730540703865,0.6510882,167.1,167.06,11.08268318]
[1730540704271,0.6510882,167.1,167.06,17.06828318]
[1730540710674,0.6510882,167.1,167.08,11.08268318]
[1730540711772,0.6510882,167.1,167.09,11.08268318]
[1730540712765,0.6510882,167.1,167.08,32.03048318]
[1730540716175,0.6510882,167.1,167.08,14.9628]
[1730540718581,0.6510882,167.1,167.06,17.06848318]
[1730540720259,6.6356882,167.1,167.04,38.27895606]
[1730540720464,11.08268318,167.09,167.04,38.27895606]
[1730540721374,17.06748318,167.09,167.04,32.03448318]
[1730540722686,0.6510882,167.1,167.08,11.08268318]
[1730540745397,0.6510882,167.1,167.07,11.08268318]
[1730540747488,0.6510882,167.1,167.09,11.08268318]
[1730540759511,0.6510882,167.1,167.09,17.06738318]
[1730540760191,0.6510882,167.1,167.09,37.06738318]
[1730540769111,0.6510882,167.1,167.09,61.04426718]
[1730540769309,26.14628318,167.21,167.1,43.876884]
[1730540769525,15.0636,167.21,167.19,11.08268318]
[1730540770322,21.0442,167.21,167.17,11.08268318]
[1730540770530,32.12688318,167.21,167.16,11.08268318]
[1730540774120,21.0442,167.21,167.16,11.08268318]
[1730540776512,11.08268318,167.2,167.15,11.08268318]
[1730540776716,11.08268318,167.19,167.14,11.08268318]
[1730540777931,11.08268318,167.2,167.14,11.08268318]
[1730540780731,21.0442,167.21,167.13,26.04048318]
[1730540780732,17.06388318,167.19,167.13,26.04048318]
[1730540780947,17.06388318,167.19,167.13,11.08268318]
[1730540780948,11.08268318,167.18,167.13,11.08268318]
[1730540781620,11.08268318,167.18,167.12,11.08268318]
[1730540781818,11.08268318,167.17,167.12,11.08268318]
[1730540782131,16.5909,167.16,167.11,17.06668318]
[1730540782538,16.5909,167.16,167.1,26.04358318]
[1730540782855,5.9826,167.15,167.1,26.04358318]
[1730540783145,5.9826,167.15,167.1,11.08268318]
[1730540783146,17.06528318,167.15,167.1,11.08268318]
[1730540783319,17.06528318,167.15,167.09,17.06708318]
[1730540787823,17.06528318,167.15,167.1,11.08268318]
[1730540790423,11.08268318,167.14,167.07,20.9488]
[1730540790631,75.9826,167.15,167.07,11.08268318]
[1730540790632,11.08268318,167.12,167.07,11.08268318]
[1730540790943,11.08268318,167.11,167.06,17.3275535]
[1730540792032,17.06688318,167.11,167.06,11.08268318]
[1730540792719,15.4066,167.1,167.04,26.04888318]
[1730540792918,11.08268318,167.09,167.04,26.04888318]
[1730540793522,11.08268318,167.09,167.04,32.03538318]
[1730540794238,21.3913,167.1,167.06,11.08268318]
[1730540797341,32.47398318,167.1,167.05,11.08268318]
[1730540798825,32.47398318,167.1,167.02,17.06958318]
[1730540798826,11.08268318,167.08,167.02,17.06958318]
[1730540799033,11.08268318,167.06,167.01,17.32759872]
[1730540799255,11.08268318,167.06,167.01,11.08268318]
[1730540799964,11.08268318,167.05,167.0,26.05198318]
[1730540800360,17.06908318,167.05,167.0,26.05198318]
[1730540800565,17.06908318,167.05,167.0,14.9693]
[1730540800862,32.47568318,167.05,167.0,14.9693]
[1730540801449,11.08268318,167.04,167.0,14.9693]
[1730540803660,17.06948318,167.04,167.0,14.9693]
[1730540805164,5.9868,167.04,167.0,14.9693]
[1730540805466,5.9868,167.04,167.0,26.05198318]
[1730540807662,5.9868,167.04,167.0,11.08268318]
[1730540807965,5.9868,167.04,166.99,11.08268318]
[1730540809258,17.06948318,167.04,166.99,11.08268318]
[1730540809572,11.08268318,167.01,166.98,0.68220624]
[1730540809771,5.9878,167.01,166.98,0.68220624]
[1730540812790,11.08268318,167.01,166.98,0.68220624]
[1730540814163,17.07038318,167.01,166.98,0.68220624]
[1730540815063,11.08268318,167.02,166.98,0.68220624]
[1730540815477,11.08268318,167.03,166.98,0.68220624]
[1730540815964,5.9865,167.04,167.0,11.08268318]
[1730540817276,17.06918318,167.04,166.99,11.08268318]
[1730540823675,17.06918318,167.04,167.01,11.08268318]
[1730540823676,5.9865,167.04,167.01,11.08268318]
[1730540824280,5.9865,167.04,167.0,11.08268318]
[1730540824479,5.9865,167.04,167.01,11.08268318]
[1730540825062,5.9865,167.04,167.0,11.08268318]
[1730540826564,17.06918318,167.04,166.98,11.08268318]
[1730540826774,11.08268318,167.02,166.96,11.08268318]
[1730540827787,5.9876,167.01,166.96,11.08268318]
[1730540828081,17.07028318,167.01,166.96,11.08268318]
[1730540829483,17.07028318,167.01,166.95,17.07238318]
[1730540830785,11.08268318,167.01,166.96,11.08268318]
[1730540831294,11.08268318,167.02,166.97,11.08268318]
[1730540831987,5.9876,167.01,166.97,11.08268318]
[1730540836104,17.07028318,167.01,166.96,11.08268318]
[1730540836744,17.07028318,167.01,166.95,5.9897]
[1730540836745,17.07028318,167.01,166.95,17.07238318]
[1730540837205,11.08268318,166.99,166.94,17.31776085]
[1730540837419,11.08268318,166.99,166.94,11.08268318]
[1730540837799,11.08268318,167.0,166.95,11.08268318]
[1730540839517,5.9883,166.99,166.95,11.08268318]
[1730540840404,5.988,167.0,166.96,11.08268318]
[1730540841370,5.988,167.0,166.95,11.08268318]
[1730540844502,17.07068318,167.0,166.94,11.08268318]
[1730540845065,26.45068318,166.98,166.93,11.08268318]
[1730540845377,26.45068318,166.98,166.91,11.76336791]
[1730540845378,11.08268318,166.96,166.91,11.76336791]
[1730540845778,11.08268318,166.96,166.91,0.68068473]
[1730540846180,11.08268318,166.95,166.91,0.68068473]
[1730540846591,5.9901,166.94,166.91,0.68068473]
[1730540846894,5.9898,166.95,166.91,0.68068473]
[1730540848785,5.9898,166.95,166.91,11.76336791]
[1730540852105,17.07248318,166.95,166.91,0.68068473]
[1730540852388,11.08268318,166.94,166.91,0.68068473]
[1730540853294,5.9898,166.95,166.91,0.68068473]
[1730540853591,5.9898,166.95,166.91,11.76336791]
[1730540854100,5.9898,166.95,166.92,11.08268318]
[1730540855681,5.9898,166.95,166.91,11.76336791]
[1730540856790,17.07248318,166.95,166.91,0.68068473]
[1730540857297,5.9898,166.95,166.91,11.76336791]
[1730540863291,5.9898,166.95,166.91,0.68068473]
[1730540865992,5.9898,166.95,166.91,11.76336791]
[1730540869488,5.9898,166.95,166.92,11.08268318]
[1730540876005,5.9898,166.95,166.9,11.08268318]
[1730540877786,5.9898,166.95,166.92,11.08268318]
[1730540877990,75.9895,166.96,166.93,11.08268318]
[1730540878189,75.9895,166.96,166.92,11.08268318]
[1730540884913,75.9895,166.96,166.93,11.08268318]
[1730540886113,5.989,166.97,166.93,11.08268318]
[1730540886413,5.989,166.97,166.94,11.08268318]
[1730540893197,4.989,166.97,166.94,11.08268318]
[1730540893407,4.989,166.97,166.93,11.08268318]
[1730540896315,4.989,166.97,166.92,11.08268318]
[1730540897300,81.08268318,166.96,166.9,26.06168318]
[1730540898605,5.9898,166.95,166.9,26.06168318]
[1730540901101,70.0,166.94,166.89,11.08268318]
[1730540901595,70.0,166.94,166.9,11.08268318]
[1730540903221,5.9905,166.93,166.9,11.08268318]
[1730540907518,5.9905,166.93,166.89,11.08268318]
[1730540909525,17.07318318,166.93,166.88,11.08268318]
[1730540909723,11.08268318,166.91,166.86,11.08268318]
[1730540910906,17.07418318,166.91,166.86,11.08268318]
[1730540911322,70.0,166.89,166.86,11.08268318]
[1730540912029,70.0,166.89,166.85,11.08268318]
[1730540912229,70.0,166.89,166.84,11.08268318]
[1730540912442,81.08268318,166.89,166.84,11.08268318]
[1730540912900,5.9923,166.88,166.84,11.08268318]
[1730540913407,17.07498318,166.88,166.83,11.08268318]
[1730540913720,17.07498318,166.88,166.82,6.23434628]
[1730540913721,11.08268318,166.87,166.82,17.31702946]
[1730540914210,17.07498318,166.88,166.83,11.08268318]
[1730540915525,5.9923,166.88,166.84,11.08268318]
[1730540919434,17.07498318,166.88,166.83,11.08268318]
[1730540920031,5.9923,166.88,166.83,11.08268318]
[1730540920746,5.9923,166.88,166.82,6.23434628]
[1730540920747,5.9923,166.88,166.84,11.08268318]
[1730540921322,17.07498318,166.88,166.83,11.08268318]
[1730540922332,17.07498318,166.88,166.82,17.31702946]
[1730540922734,70.0,166.85,166.8,11.08268318]
[1730540923036,81.08268318,166.85,166.8,11.08268318]
[1730540923515,5.9937,166.84,166.79,11.08268318]
[1730540924421,33.10668318,166.84,166.78,26.07238318]
[1730540924814,33.10668318,166.84,166.78,11.08268318]
[1730540924815,70.0,166.83,166.78,11.08268318]
[1730540925031,81.08268318,166.83,166.78,11.08268318]
[1730540925833,5.9944,166.82,166.78,11.08268318]
[1730540926632,17.07708318,166.82,166.76,17.07888318]
[1730540926935,17.07708318,166.82,166.77,11.08268318]
[1730540927323,70.0,166.81,166.76,11.08268318]
[1730540928037,5.9952,166.8,166.76,11.08268318]
[1730540928534,5.9952,166.8,166.77,11.08268318]
[1730540942253,5.9952,166.8,166.76,17.07928318]
[1730540942724,17.07788318,166.8,166.75,11.08268318]
[1730540943645,70.0,166.79,166.75,11.08268318]
[1730540943820,75.9957,166.79,166.75,11.08268318]
[1730540956158,5.9957,166.79,166.77,11.08268318]
[1730540956438,5.9952,166.8,166.77,11.08268318]
[1730540957543,5.9952,166.8,166.76,11.08268318]
[1730540958767,17.07788318,166.8,166.75,11.08268318]
[1730540959146,5.9952,166.8,166.76,11.08268318]
[1730540961260,17.07788318,166.8,166.75,11.08268318]
[1730540961563,5.9952,166.8,166.76,11.08268318]
[1730540961879,17.07788318,166.8,166.75,11.08268318]
[1730540962747,70.0,166.79,166.75,11.08268318]
[1730540963668,5.9959,166.78,166.75,11.08268318]
[1730540963872,5.9959,166.78,166.74,11.08268318]
[1730540964448,70.0,166.77,166.73,11.08268318]
[1730540964649,70.0,166.77,166.71,14.9958]
[1730540964650,81.08268318,166.77,166.71,11.08268318]
[1730540964862,81.08268318,166.77,166.72,11.08268318]
[1730540965946,5.9966,166.76,166.72,11.08268318]
[1730540967179,70.0,166.75,166.71,11.08268318]
[1730540968475,5.9973,166.74,166.71,11.08268318]
[1730540970268,5.9973,166.74,166.72,11.08268318]
[1730540975578,5.9973,166.74,166.71,11.08268318]
[1730540975983,5.9973,166.74,166.7,11.08268318]
[1730540976270,5.9973,166.74,166.71,11.08268318]
[1730540977373,5.9973,166.74,166.7,11.08268318]
[1730540977874,5.9973,166.74,166.71,11.08268318]
[1730540979683,5.9973,166.74,166.7,11.08268318]
[1730540980383,5.9973,166.74,166.71,11.08268318]
[1730540981255,5.9973,166.74,166.7,11.08268318]
[1730540982375,99.774884,166.73,166.7,11.08268318]
[1730540985979,99.774884,166.73,166.69,11.69400778]
[1730540987088,99.774884,166.73,166.69,0.6113246]
[1730540987285,70.0,166.71,166.69,0.6113246]
[1730540988371,70.0,166.71,166.69,11.69400778]
[1730540989172,75.9984,166.71,166.69,0.6113246]
[1730540990986,93.776884,166.73,166.7,11.08268318]
[1730540991169,99.774684,166.73,166.7,11.08268318]
[1730540993090,99.774684,166.73,166.69,0.6113246]
[1730540993091,5.9975,166.74,166.72,11.08268318]
[1730540993284,70.0,166.75,166.72,11.08268318]
[1730540993491,70.0,166.75,166.73,11.08268318]
[1730540993690,75.997,166.75,166.72,11.08268318]
[1730540995786,75.997,166.75,166.71,11.08268318]
[1730540996591,75.997,166.75,166.72,11.08268318]
[1730540998295,75.997,166.75,166.73,11.08268318]
[1730541000073,70.0,166.77,166.73,11.08268318]
[1730541000274,29.773484,166.76,166.73,11.08268318]
[1730541000873,5.9966,166.76,166.73,11.08268318]
[1730541001194,5.9966,166.76,166.69,15.6092246]
[1730541001195,5.9966,166.76,166.74,11.08268318]
[1730541002197,5.9966,166.76,166.73,11.08268318]
[1730541004505,5.9966,166.76,166.74,11.08268318]
[1730541005985,5.9966,166.76,166.73,11.08268318]
[1730541008701,5.9966,166.76,166.74,11.08268318]
[1730541010693,29.772884,166.78,166.75,11.08268318]
[1730541014903,5.996,166.78,166.76,11.08268318]
[1730541015106,75.9955,166.79,166.77,11.08268318]
[1730541015408,5.9955,166.79,166.77,11.08268318]
[1730541016189,29.772084,166.8,166.77,11.08268318]
[1730541017708,75.9956,166.79,166.77,11.08268318]
[1730541018491,75.9956,166.79,166.76,11.08268318]
[1730541030323,75.9956,166.79,166.75,11.08268318]
[1730541030811,75.9956,166.79,166.76,11.08268318]
[1730541034143,75.9956,166.79,166.75,11.08268318]
[1730541036110,23.776884,166.78,166.75,11.08268318]
[1730541037424,5.9962,166.77,166.75,11.08268318]
[1730541038335,5.9962,166.77,166.76,11.08268318]
[1730541044631,5.9962,166.77,166.75,11.08268318]
[1730541046312,5.9962,166.77,166.76,11.08268318]
[1730541046724,29.772884,166.78,166.76,11.08268318]
[1730541047533,70.0,166.79,166.76,11.08268318]
[1730541047724,5.9955,166.79,166.76,11.08268318]
[1730541048234,5.9955,166.79,166.77,11.08268318]
[1730541049321,70.0,166.81,166.77,11.08268318]
[1730541049532,29.772084,166.8,166.77,11.08268318]
[1730541054318,5.9952,166.8,166.78,11.08268318]
[1730541054917,5.9952,166.8,166.77,11.08268318]
[1730541060520,21.1817,166.82,166.79,11.08268318]
[1730541060943,21.1817,166.82,166.78,11.08268318]
[1730541062620,21.1817,166.82,166.77,11.08268318]
[1730541062927,81.08268318,166.81,166.75,26.07518318]
[1730541063323,81.08268318,166.81,166.76,11.08268318]
[1730541064021,5.9952,166.8,166.76,11.08268318]
[1730541067539,5.9952,166.8,166.75,11.08268318]
[1730541068938,5.9952,166.8,166.76,11.08268318]
[1730541072540,70.0,166.78,166.74,11.08268318]
[1730541074528,5.9962,166.77,166.74,11.08268318]
[1730541076125,5.9962,166.77,166.73,11.08268318]
[1730541076449,11.08268318,166.76,166.71,11.08268318]
[1730541076652,81.08268318,166.76,166.71,11.08268318]
[1730541076945,11.08268318,166.74,166.69,11.69400778]
[1730541077148,11.08268318,166.75,166.7,11.08268318]
[1730541078540,5.9973,166.74,166.7,11.08268318]
[1730541078849,17.07998318,166.74,166.69,11.69400778]
[1730541079343,70.0,166.73,166.69,11.69400778]
[1730541080048,11.08268318,166.72,166.69,0.6113246]
[1730541080438,81.08268318,166.73,166.69,0.6113246]
[1730541080640,5.998,166.72,166.69,0.6113246]
[1730541081545,17.08068318,166.72,166.69,0.6113246]
[1730541081933,5.998,166.72,166.69,0.6113246]
[1730541082446,17.08068318,166.72,166.69,0.6113246]
[1730541082654,5.998,166.72,166.69,0.6113246]
[1730541083150,5.9975,166.74,166.71,11.08268318]
[1730541083748,5.9975,166.74,166.7,11.08268318]
[1730541096446,17.08018318,166.74,166.69,11.69400778]
[1730541097159,5.9975,166.74,166.69,11.69400778]
[1730541098362,5.9975,166.74,166.7,11.08268318]
[1730541101263,5.9975,166.74,166.69,11.69400778]
[1730541101850,17.08018318,166.74,166.69,11.69400778]
[1730541102049,17.08018318,166.74,166.69,0.6113246]
[1730541102346,17.08018318,166.74,166.69,11.69400778]
[1730541102543,70.0,166.73,166.69,0.6113246]
[1730541103471,70.0,166.73,166.69,11.69400778]
[1730541103672,5.998,166.72,166.69,11.69400778]
[1730541105768,5.9976,166.74,166.71,11.08268318]
[1730541106251,5.9976,166.74,166.69,0.6113246]
[1730541106252,5.9976,166.74,166.7,11.08268318]
[1730541109156,5.9976,166.74,166.69,0.6113246]
[1730541109157,5.9976,166.74,166.69,11.69400778]
[1730541110689,5.9976,166.74,166.7,11.08268318]
[1730541112373,5.9976,166.74,166.69,11.69400778]
[1730541116281,17.08028318,166.74,166.69,11.69400778]
[1730541117171,70.0,166.73,166.69,0.6113246]
[1730541117363,81.08268318,166.73,166.69,0.6113246]
[1730541118156,81.08268318,166.71,166.69,0.6113246]
[1730541119263,5.9988,166.7,166.69,0.6113246]
[1730541126380,17.08148318,166.7,166.69,0.6113246]
[1730541128268,40.85836718,166.7,166.69,0.6113246]
[1730541130589,29.775684,166.7,166.69,0.6113246]
[1730541131074,40.85836718,166.7,166.69,0.6113246]
[1730541152992,5.9988,166.7,166.69,0.6113246]
[1730541154209,29.775684,166.7,166.69,0.6113246]
[1730541157194,40.85836718,166.7,166.69,0.6113246]
[1730541162719,29.775684,166.7,166.69,0.6113246]
[1730541166912,40.85836718,166.7,166.69,0.6113246]
[1730541167742,29.775684,166.7,166.69,0.6113246]
[1730541174524,40.85836718,166.7,166.69,0.6113246]
[1730541183038,5.9995,166.68,166.6,6.25419099]
[1730541183327,5.9995,166.68,166.58,0.1]
[1730541183328,70.0,166.64,166.53,22.404]
[1730541183527,15.5604,166.65,166.55,0.1]
[1730541183707,70.0,166.66,166.56,1.50213011]
[1730541183906,70.0,166.66,166.55,0.1]
[1730541184334,11.08268318,166.63,166.56,11.08268318]
[1730541184509,11.08268318,166.63,166.56,10.08268318]
[1730541184826,11.08268318,166.66,166.6,11.08268318]
[1730541185042,11.08268318,166.68,166.62,11.08268318]
[1730541185210,11.08268318,166.68,166.63,11.08268318]
[1730541185410,11.08268318,166.68,166.62,11.08268318]
[1730541185611,11.08268318,166.67,166.62,11.08268318]
[1730541186715,11.08268318,166.68,166.62,11.08268318]
[1730541187027,11.08268318,166.68,166.62,17.08428318]
[1730541187329,17.08188318,166.69,166.63,11.08268318]
[1730541187533,11.08268318,166.68,166.62,17.08428318]
[1730541188730,11.08268318,166.67,166.61,11.08268318]
[1730541189028,11.08268318,166.67,166.62,11.08268318]
[1730541190839,17.08248318,166.67,166.62,11.08268318]
[1730541192823,11.08268318,166.68,166.62,11.08268318]
[1730541193522,11.08268318,166.67,166.62,11.08268318]
[1730541193718,11.08268318,166.68,166.62,11.08268318]
[1730541194133,11.08268318,166.67,166.62,11.08268318]
[1730541194343,17.08068318,166.73,166.66,11.08268318]
[1730541194534,5.9974,166.74,166.7,11.08268318]
[1730541194734,17.08008318,166.74,166.69,11.08268318]
[1730541194933,17.08008318,166.74,166.68,11.08268318]
[1730541196544,17.08048318,166.73,166.68,11.08268318]
[1730541198523,5.9978,166.73,166.7,11.08268318]
[1730541198828,17.07968318,166.75,166.7,11.08268318]
[1730541199342,17.07968318,166.75,166.69,11.08268318]
[1730541199543,17.07968318,166.75,166.7,11.08268318]
[1730541200238,17.07968318,166.75,166.69,11.08268318]
[1730541200449,11.08268318,166.74,166.69,11.08268318]
[1730541200824,5.9977,166.73,166.69,11.08268318]
[1730541201739,17.08038318,166.73,166.68,11.08268318]
[1730541202749,17.08038318,166.73,166.04,56.57247195]
[1730541202750,11.08268318,166.7,166.65,11.08268318]
[1730541202934,11.08268318,166.7,166.63,6.0012]
[1730541202935,11.08268318,166.71,166.66,11.08268318]
[1730541206156,5.9984,166.71,166.66,11.08268318]
[1730541207251,17.08108318,166.71,166.66,11.08268318]
[1730541208226,5.9984,166.71,166.66,11.08268318]
[1730541209035,81.08268318,166.67,166.6,6.26195178]
[1730541209361,11.08268318,166.65,166.59,11.08268318]
[1730541209850,11.08268318,166.66,166.6,11.08268318]
[1730541210235,6.0006,166.65,166.6,11.08268318]
[1730541212058,17.08328318,166.65,166.59,11.08268318]
[1730541212363,6.0006,166.65,166.61,11.08268318]
[1730541212856,6.0006,166.65,166.6,11.08268318]
[1730541213036,17.08328318,166.65,166.6,11.08268318]
[1730541213230,23.776884,166.68,166.59,11.08268318]
[1730541213231,11.08268318,166.64,166.59,11.08268318]
[1730541213662,11.08268318,166.65,166.6,11.08268318]
[1730541214673,17.08338318,166.65,166.6,11.08268318]
[1730541215155,17.08338318,166.65,166.59,17.08528318]